[Event "FIDE World Rapid-ch Open 2018"]
[White "Zakhartsov, Vladimir"]
[Black "Grigoriants, Sergey"]
[Site "St. Petersburg"]
[Round "4.70"]
[Annotator "ChessBase"]
[Result "0-1"]
[Date "2018.12.26"]
[WhiteElo "2486"]
[BlackElo "2540"]
[PlyCount "68"]
[TimeControl "900+10"]

1. e4 {[%emt 0:0:0]} c6 {[%emt 0:0:0]} 2. d4 {[%emt 0:0:0]} d5 {[%emt 0:0:0]} 3. Nc3 {[%emt 0:0:1]} dxe4 {[%emt 0:0:2]} 4. Nxe4 {[%emt 0:0:1]} Bf5 {[%emt 0:0:1]} 5. Ng3 {[%emt 0:0:2]} Bg6 {[%emt 0:0:2]} 6. h4 {[%emt 0:0:7]
} h6 {[%emt 0:0:5]} 7. Nf3 {[%emt 0:0:2]} e6 {[%emt 0:0:3]} 8. Ne5 {[%emt 0:0:27]} Bh7 {[%emt 0:0:2]} 9. f4 {[%emt 0:1:1]} Nf6 {[%emt 0:5:21]
} 10. Bd3 {[%emt 0:0:31]} Qxd4 {[%emt 0:1:21]} 11. c3 {[%emt 0:0:0]} Qd5 {[%emt 0:0:40]} 12. Qe2 {[%emt 0:0:6]} Bxd3 {[%emt 0:2:2]} 13. Nxd3 {[%emt 0:0:1]} Nbd7 {[%emt 0:0:28]} 14. b3 {[%emt 0:1:24]} Be7 {[%emt 0:0:41]
} 15. c4 {[%emt 0:0:29]} Qa5+ {[%emt 0:0:11]} 16. Bd2 {[%emt 0:0:0]} Qc7 {[%emt 0:0:9]} 17. Bc3 {[%emt 0:0:12]} 0-0 {[%emt 0:0:25]} 18. 0-0-0 {[%emt 0:0:20]} b5 {[%emt 0:0:24]} 19. Ne5 {[%emt 0:0:12]} Rad8 {[%emt 0:0:33]
} 20. Rde1 {[%emt 0:1:2]} bxc4 {[%emt 0:0:35]} 21. Qxc4 {[%emt 0:0:29]
} Nd5 {[%emt 0:0:38]} 22. Bd2 {[%emt 0:0:37]} Nxe5 {[%emt 0:0:0]} 23. fxe5 {[%emt 0:0:6]} f5 {[%emt 0:0:3]} 24. Nh5 {[%emt 0:0:44]} Qd7 {[%emt 0:0:19]} 25. Ba5 {[%emt 0:1:18]} Rb8 {[%emt 0:0:26]} 26. Rd1 {[%emt 0:0:21]
} Rb5 {[%emt 0:0:18]} 27. b4 {[%emt 0:0:18]} Qe8 {[%emt 0:0:0]} 28. a4 {[%emt 0:0:58]} Rxa5 {[%emt 0:0:23]} 29. Nxg7 {[%emt 0:0:18]} Kxg7 {[%emt 0:0:35]} 30. bxa5 {[%emt 0:0:2]} Qb8 {[%emt 0:0:37]} 31. Rh3 {[%emt 0:0:13]
} Qxe5 {[%emt 0:0:21]} 32. Rdd3 {[%emt 0:1:16]} Rb8 {[%emt 0:0:0]} 33. Rb3 {[%emt 0:0:18]} Qe1+ {[%emt 0:0:22]} 34. Kc2 {[%emt 0:0:4]} Nb4+ {[%emt 0:0:23]} 0-1

[Event "FIDE World Rapid-ch Open 2018"]
[White "Kovalev, Vladislav"]
[Black "Drygalov, Andrey"]
[Site "St. Petersburg"]
[Round "4.71"]
[Annotator "ChessBase"]
[Result "1-0"]
[Date "2018.12.26"]
[WhiteElo "2683"]
[BlackElo "2481"]
[PlyCount "147"]
[TimeControl "900+10"]

1. e4 c5 2. Nf3 e6 3. d4 cxd4 4. Nxd4 Nc6 5. Nc3 Qc7 6. Be2 a6 7. 0-0 Nf6 8. Be3 Be7 9. f4 d6 10. a4 0-0 11. Qd2 Bd7 12. Nb3 b6 13. g4 d5 14. e5 Ne8 15. Nd4 Bc5 16. Nxc6 Bxc6 17. Bd4 Bb7 18. Rfd1 f6 19. Qe3 fxe5 20. fxe5 Rc8 21. h3 Qe7 22. Rd2 g5 23. Rf1 Rxf1+ 24. Bxf1 Ng7 25. Bd3 Bxd4 26. Qxd4 Qc5 27. Ne2 Rf8 28. Rd1 Rf3 29. Kg2 Qf8 30. Ng3 Rf4 31. Qxb6 Rb4 32. Qc7 d4+ 33. Ne4 Ne8 34. Qd8 Ng7 35. Qxg5 Rxb2 36. Rf1 Qc8 37. Qf4 Qe8 38. Kg3 Bxe4 39. Qxe4 Qg6 40. Qxd4 Qg5 41. Qe4 Nf5+ 42. Kh2 Qd2+ 43. Kg1 Qe3+ 44. Qxe3 Nxe3 45. Rf6 Rb6 46. Kf2 Nd5 47. Rh6 Nf4 48. Ke3 Rb4 49. a5 Nd5+ 50. Kd2 Nf4 51. Bxh7+ Kg7 52. g5 Rb5 53. h4 Rxa5 54. Ke3 Nd5+ 55. Kd4 Ra4+ 56. c4 Nf4 57. Be4 Ra1 58. Rh7+ Kg8 59. Ra7 Ne2+ 60. Ke3 Ng3 61. Bh7+ Kh8 62. Bd3 Ra3 63. Kd4 Kg8 64. g6 a5 65. Ra8+ Kg7 66. Ra7+ Kg8 67. c5 Ra4+ 68. Ke3 Ra3 69. Kd4 Ra4+ 70. Kc3 Ra3+ 71. Kc2 Ra2+ 72. Kb3 Rd2 73. Bc4 a4+ 74. Ka3 1-0

[Event "FIDE World Rapid-ch Open 2018"]
[White "Yuffa, Daniil"]
[Black "Dzhumagaliev, Yan"]
[Site "St. Petersburg"]
[Round "4.72"]
[Annotator "ChessBase"]
[Result "1-0"]
[Date "2018.12.26"]
[WhiteElo "2572"]
[BlackElo "2410"]
[PlyCount "77"]
[TimeControl "900+10"]

1. d4 {[%emt 0:0:0]} Nf6 {[%emt 0:0:0]} 2. c4 {[%emt 0:0:0]} e6 {[%emt 0:0:0]} 3. g3 {[%emt 0:0:0]} Bb4+ {[%emt 0:0:0]} 4. Bd2 {[%emt 0:0:0]} Qe7 {[%emt 0:0:6]} 5. Bg2 {[%emt 0:0:0]} Nc6 {[%emt 0:0:6]} 6. e3 {[%emt 0:0:1]
} d5 {[%emt 0:0:28]} 7. a3 {[%emt 0:0:46]} Bxd2+ {[%emt 0:0:0]} 8. Nxd2 {[%emt 0:0:2]} 0-0 {[%emt 0:0:56]} 9. Ne2 {[%emt 0:0:25]} Na5 {[%emt 0:0:58]} 10. cxd5 {[%emt 0:1:21]} exd5 {[%emt 0:0:5]} 11. Nf4 {[%emt 0:0:24]
} c5 {[%emt 0:1:46]} 12. dxc5 {[%emt 0:0:24]} d4 {[%emt 0:0:0]} 13. e4 {[%emt 0:0:11]} Nc6 {[%emt 0:0:1]} 14. b4 {[%emt 0:1:28]} a5 {[%emt 0:0:2]
} 15. 0-0 {[%emt 0:0:17]} Be6 {[%emt 0:3:13]} 16. Nxe6 {[%emt 0:5:50]
} fxe6 {[%emt 0:0:3]} 17. Qb3 {[%emt 0:0:37]} Kh8 {[%emt 0:0:0]} 18. Nc4 {[%emt 0:0:16]} axb4 {[%emt 0:1:14]} 19. axb4 {[%emt 0:0:1]} Rxa1 {[%emt 0:0:22]} 20. Rxa1 {[%emt 0:0:2]} Ng4 {[%emt 0:0:3]} 21. h3 {[%emt 0:3:31]
} Nf6 {[%emt 0:2:41]} 22. b5 {[%emt 0:0:15]} Nd8 {[%emt 0:0:0]} 23. e5 {[%emt 0:0:23]} Nd5 {[%emt 0:0:34]} 24. Nd6 {[%emt 0:0:37]} Nc3 {[%emt 0:0:8]} 25. Qc4 {[%emt 0:0:33]} Nf7 {[%emt 0:0:17]} 26. Re1 {[%emt 0:0:24]
} Nxd6 {[%emt 0:2:3]} 27. cxd6 {[%emt 0:0:37]} Qd7 {[%emt 0:0:0]} 28. Qxd4 {[%emt 0:0:14]} Nxb5 {[%emt 0:0:13]} 29. Qb6 {[%emt 0:0:4]
} Nc3 {[%emt 0:0:9]} 30. Qxb7 {[%emt 0:0:26]} Qa4 {[%emt 0:0:2]} 31. Qe7 {[%emt 0:0:22]
} Rg8 {[%emt 0:0:7]} 32. Qxe6 {[%emt 0:0:13]} Qd4 {[%emt 0:0:0]} 33. Qg4 {[%emt 0:0:22]} Qd2 {[%emt 0:0:5]} 34. Ra1 {[%emt 0:0:5]} Rf8 {[%emt 0:0:14]} 35. Qf3 {[%emt 0:0:18]} Rg8 {[%emt 0:0:38]} 36. Kh2 {[%emt 0:0:9]
} h6 {[%emt 0:0:18]} 37. Ra8 {[%emt 0:0:9]} Qd4 {[%emt 0:0:0]} 38. Rxg8+ {[%emt 0:0:8]} Kxg8 {[%emt 0:0:1]} 39. d7 {[%emt 0:0:12]} 1-0

[Event "FIDE World Rapid-ch Open 2018"]
[White "Maghsoodloo, Parham"]
[Black "Zvjaginsev, Vadim"]
[Site "St. Petersburg"]
[Round "4.73"]
[Annotator "ChessBase"]
[Result "1-0"]
[Date "2018.12.26"]
[WhiteElo "2688"]
[BlackElo "2642"]
[PlyCount "99"]
[TimeControl "900+10"]

1. e4 {[%emt 0:0:0]} c5 {[%emt 0:0:0]} 2. Nf3 {[%emt 0:0:0]} Nc6 {[%emt 0:0:0]
} 3. Bb5 {[%emt 0:0:0]} g6 {[%emt 0:0:1]} 4. 0-0 {[%emt 0:0:0]} Bg7 {[%emt 0:0:2]} 5. Re1 {[%emt 0:0:0]} e5 {[%emt 0:0:5]} 6. Bxc6 {[%emt 0:0:4]
} bxc6 {[%emt 0:0:21]} 7. c3 {[%emt 0:0:19]} Ne7 {[%emt 0:0:0]} 8. d4 {[%emt 0:0:8]} cxd4 {[%emt 0:0:2]} 9. cxd4 {[%emt 0:0:2]} exd4 {[%emt 0:0:1]} 10. Nxd4 {[%emt 0:0:1]} 0-0 {[%emt 0:0:2]} 11. Nc3 {[%emt 0:0:6]
} Rb8 {[%emt 0:0:2]} 12. Nb3 {[%emt 0:0:3]} d5 {[%emt 0:0:0]} 13. Bg5 {[%emt 0:0:6]} d4 {[%emt 0:0:16]} 14. Na4 {[%emt 0:0:1]} h6 {[%emt 0:1:3]
} 15. Bh4 {[%emt 0:0:16]} Be6 {[%emt 0:1:59]} 16. Nac5 {[%emt 0:0:44]
} Bxb3 {[%emt 0:0:8]} 17. axb3 {[%emt 0:0:3]} Rb5 {[%emt 0:0:0]} 18. Nd3 {[%emt 0:0:38]} a5 {[%emt 0:0:28]} 19. Qc2 {[%emt 0:0:4]} Re8 {[%emt 0:1:5]} 20. Bxe7 {[%emt 0:0:57]} Rxe7 {[%emt 0:0:42]} 21. b4 {[%emt 0:0:4]
} axb4 {[%emt 0:0:14]} 22. Qxc6 {[%emt 0:0:3]} Rb8 {[%emt 0:0:0]} 23. Rec1 {[%emt 0:0:13]} b3 {[%emt 0:0:28]} 24. f3 {[%emt 0:1:18]} Re8 {[%emt 0:2:44]} 25. Qc4 {[%emt 0:0:54]} Qg5 {[%emt 0:0:46]} 26. f4 {[%emt 0:0:1]
} Qg4 {[%emt 0:0:30]} 27. Ra7 {[%emt 0:0:16]} Rf8 {[%emt 0:0:0]} 28. Re1 {[%emt 0:0:25]} h5 {[%emt 0:0:35]} 29. e5 {[%emt 0:2:28]} Rb6 {[%emt 0:0:30]
} 30. Qxd4 {[%emt 0:0:27]} Rbb8 {[%emt 0:0:48]} 31. Qc4 {[%emt 0:2:8]
} h4 {[%emt 0:0:30]} 32. h3 {[%emt 0:1:34]} Qf5 {[%emt 0:1:2]
} 33. Rc7 {[%emt 0:0:30]} Rfd8 {[%emt 0:1:32]} 34. Re3 {[%emt 0:0:1]} Rb6 {[%emt 0:0:45]
} 35. Re4 {[%emt 0:3:0]} Bf8 {[%emt 0:0:28]} 36. Kh2 {[%emt 0:0:0]} Qe6 {[%emt 0:1:21]} 37. Qxe6 {[%emt 0:0:14]} fxe6 {[%emt 0:0:4]} 38. Rc3 {[%emt 0:0:17]} Rb5 {[%emt 0:0:15]} 39. g3 {[%emt 0:1:25]} Rbd5 {[%emt 0:0:8]
} 40. Re3 {[%emt 0:0:1]} Bc5 {[%emt 0:0:53]} 41. Rf3 {[%emt 0:0:0]} Bd4 {[%emt 0:0:10]} 42. Rxb3 {[%emt 0:0:0]} g5 {[%emt 0:0:5]} 43. fxg5 {[%emt 0:0:44]} Bxe5 {[%emt 0:0:20]} 44. Nxe5 {[%emt 0:0:1]} hxg3+ {[%emt 0:0:7]
} 45. Kxg3 {[%emt 0:0:1]} Rxe5 {[%emt 0:0:1]} 46. h4 {[%emt 0:0:1]
} Re4 {[%emt 0:0:4]} 47. Rfe3 {[%emt 0:0:17]} Rc4 {[%emt 0:0:0]} 48. Rbd3 {[%emt 0:0:26]} Rf8 {[%emt 0:0:23]} 49. b3 {[%emt 0:0:12]} Rb4 {[%emt 0:0:7]} 50. Rf3 {[%emt 0:0:21]} 1-0

[Event "FIDE World Rapid-ch Open 2018"]
[White "Teske, Henrik"]
[Black "Carlsson, Pontus"]
[Site "St. Petersburg"]
[Round "4.74"]
[Annotator "ChessBase"]
[Result "1-0"]
[Date "2018.12.26"]
[WhiteElo "2483"]
[BlackElo "2463"]
[PlyCount "157"]
[TimeControl "900+10"]

1. e4 c5 2. Nf3 d6 3. Nc3 a6 4. e5 d5 5. d4 e6 6. Be3 b6 7. Ne2 Ne7 8. c3 Nf5 9. Nf4 Nc6 10. Bd3 c4 11. Bc2 b5 12. a3 Be7 13. h4 h5 14. Bd2 g6 15. Qe2 a5 16. Bxf5 exf5 17. e6 Bxe6 18. Nxe6 fxe6 19. Qxe6 Qd6 20. Qe2 Kd7 21. 0-0 Bf6 22. g3 Rhe8 23. Qd1 Re4 24. Kg2 Rae8 25. Bf4 Rxf4 26. gxf4 Qxf4 27. Rh1 Qg4+ 28. Kf1 a4 29. Ng1 Qe4 30. Qf3 Na5 31. Rd1 Nb3 32. Rh3 Re6 33. Ne2 Bd8 34. Nf4 Rd6 35. Qxe4 fxe4 36. Ke2 Ke7 37. Rg1 Kf7 38. Rhg3 Bxh4 39. Rxg6 Rxg6 40. Nxg6 Nc1+ 41. Ke3 Bf6 42. Nf4 Nd3 43. Nxd5 Nxb2 44. Kxe4 Nd3 45. Ke3 Bd8 46. Rb1 h4 47. Rxb5 h3 48. Rb7+ Kg6 49. Kf3 h2 50. Kg2 Nxf2 51. Kxh2 Ne4 52. Kg2 Ba5 53. Ra7 Bxc3 54. Rxa4 Bb2 55. Kf3 Nd2+ 56. Ke2 c3 57. Ne3 Nb3 58. d5 Kf6 59. Ra8 Ke5 60. Kd3 Nc5+ 61. Kc2 Ba1 62. Ra5 Nb7 63. Rb5 Nd6 64. Rb4 Bb2 65. a4 Ba3 66. Nc4+ Nxc4 67. Rxc4 Kxd5 68. Kxc3 Bc5 69. a5 Ba7 70. a6 Bb6 71. Kb4 Kd6 72. Kb5 Ba7 73. Rc1 Kd7 74. Rc2 Be3 75. Kc4 Bb6 76. Kd5 Be3 77. Rb2 Kc7 78. Rb7+ Kc8 79. Kc6 1-0

[Event "FIDE World Rapid-ch Open 2018"]
[White "Apryshko, Gleb"]
[Black "Tregubov, Pavel V."]
[Site "St. Petersburg"]
[Round "4.75"]
[Annotator "ChessBase"]
[Result "0-1"]
[Date "2018.12.26"]
[WhiteElo "2385"]
[BlackElo "2592"]
[PlyCount "96"]
[TimeControl "900+10"]

1. e4 {[%emt 0:0:0]} c5 {[%emt 0:0:0]} 2. Nf3 {[%emt 0:0:0]} e6 {[%emt 0:0:0]} 3. Nc3 {[%emt 0:0:0]} Nc6 {[%emt 0:0:4]} 4. g3 {[%emt 0:0:2]} d5 {[%emt 0:0:9]} 5. Bg2 {[%emt 0:0:2]} Nf6 {[%emt 0:0:19]} 6. d3 {[%emt 0:0:0]} dxe4 {[%emt 0:0:42]} 7. Nxe4 {[%emt 0:0:6]} Nxe4 {[%emt 0:0:4]} 8. dxe4 {[%emt 0:0:5]} Qxd1+ {[%emt 0:0:5]} 9. Kxd1 {[%emt 0:0:1]} e5 {[%emt 0:0:13]
} 10. c3 {[%emt 0:0:25]} f6 {[%emt 0:0:31]} 11. Bf1 {[%emt 0:0:0]} Be6 {[%emt 0:0:13]} 12. Bb5 {[%emt 0:0:1]} Rc8 {[%emt 0:0:9]} 13. Nd2 {[%emt 0:0:3]} Be7 {[%emt 0:0:44]} 14. a4 {[%emt 0:0:33]} Kf7 {[%emt 0:0:0]} 15. a5 {[%emt 0:0:25]} Rhd8 {[%emt 0:0:40]} 16. Kc2 {[%emt 0:0:8]} c4 {[%emt 0:1:31]} 17. Ra4 {[%emt 0:0:20]} a6 {[%emt 0:0:16]} 18. Bxc4 {[%emt 0:0:42]
} Nb4+ {[%emt 0:0:12]} 19. Kb3 {[%emt 0:0:34]} Nd3 {[%emt 0:0:0]} 20. Bxe6+ {[%emt 0:0:19]} Kxe6 {[%emt 0:0:1]} 21. Kc2 {[%emt 0:0:2]} Nxf2 {[%emt 0:0:23]} 22. Re1 {[%emt 0:0:7]} Nd3 {[%emt 0:1:6]} 23. Re3 {[%emt 0:2:54]
} Nxc1 {[%emt 0:2:3]} 24. Kxc1 {[%emt 0:0:2]} Rd7 {[%emt 0:0:0]} 25. Kc2 {[%emt 0:1:27]} Rcd8 {[%emt 0:0:19]} 26. Re2 {[%emt 0:0:1]} g6 {[%emt 0:0:14]} 27. Nc4 {[%emt 0:0:21]} Bc5 {[%emt 0:0:25]} 28. Ra1 {[%emt 0:0:2]
} h5 {[%emt 0:0:23]} 29. h3 {[%emt 0:1:59]} Rd3 {[%emt 0:0:26]
} 30. Rg2 {[%emt 0:1:7]} Rf3 {[%emt 0:0:54]} 31. Nd2 {[%emt 0:4:50]} Re3 {[%emt 0:1:15]
} 32. Ra4 {[%emt 0:0:0]} f5 {[%emt 0:0:49]} 33. exf5+ {[%emt 0:0:1]
} gxf5 {[%emt 0:0:2]} 34. Rc4 {[%emt 0:0:28]} Bd6 {[%emt 0:0:0]} 35. Rh4 {[%emt 0:0:5]} Rg8 {[%emt 0:0:25]} 36. g4 {[%emt 0:0:14]} f4 {[%emt 0:2:4]
} 37. Rxh5 {[%emt 0:0:5]} Rg6 {[%emt 0:0:55]} 38. Nc4 {[%emt 0:0:27]
} Re4 {[%emt 0:0:52]} 39. Kd3 {[%emt 0:0:4]} f3 {[%emt 0:0:0]} 40. Rf2 {[%emt 0:0:7]} Rf4 {[%emt 0:0:1]} 41. Rf5 {[%emt 0:0:19]} e4+ {[%emt 0:0:26]} 42. Ke3 {[%emt 0:0:11]} Rxf5 {[%emt 0:0:1]} 43. gxf5+ {[%emt 0:0:0]
} Kxf5 {[%emt 0:0:1]} 44. b4 {[%emt 0:0:16]} Bf4+ 45. Kd4 Rg8 {[%emt 0:0:44]} 46. Nb6 {[%emt 0:0:22]} Rg2 {[%emt 0:0:20]} 47. Rf1 {[%emt 0:0:3]
} Rd2+ {[%emt 0:0:1]} 48. Kc4 {[%emt 0:0:4]} f2 {[%emt 0:0:0] Kd4 Ke5+} 0-1

[Event "FIDE World Rapid-ch Open 2018"]
[White "Gasanov, Eldar"]
[Black "Kazhgaleyev, Murtas"]
[Site "St. Petersburg"]
[Round "4.76"]
[Annotator "ChessBase"]
[Result "1-0"]
[Date "2018.12.26"]
[WhiteElo "2499"]
[BlackElo "2587"]
[PlyCount "115"]
[TimeControl "900+10"]

1. Nf3 {[%emt 0:0:0]} Nf6 {[%emt 0:0:0]} 2. c4 {[%emt 0:0:0]} e6 {[%emt 0:0:4]
} 3. Nc3 {[%emt 0:0:9]} d5 {[%emt 0:0:2]} 4. e3 {[%emt 0:0:0]} c5 {[%emt 0:0:17]} 5. d4 {[%emt 0:0:20]} cxd4 {[%emt 0:0:5]} 6. exd4 {[%emt 0:0:3]
} Bb4 {[%emt 0:0:3]} 7. cxd5 {[%emt 0:0:19]} Nxd5 {[%emt 0:0:0]} 8. Bd2 {[%emt 0:0:44]} Nc6 {[%emt 0:0:7]} 9. Bd3 {[%emt 0:0:2]} Be7 {[%emt 0:0:19]
} 10. 0-0 {[%emt 0:0:25]} 0-0 {[%emt 0:0:3]} 11. Qe2 {[%emt 0:0:0]} Bf6 {[%emt 0:1:20]} 12. Qe4 {[%emt 0:0:23]} g6 {[%emt 0:0:9]} 13. Bh6 {[%emt 0:0:15]} Re8 {[%emt 0:0:15]} 14. Rad1 {[%emt 0:0:25]} Ncb4 {[%emt 0:1:27]
} 15. Bc4 {[%emt 0:1:23]} Bd7 {[%emt 0:1:15]} 16. Ne5 {[%emt 0:0:0]} Bc6 {[%emt 0:0:22]} 17. Nxc6 {[%emt 0:0:38]} bxc6 {[%emt 0:0:16]} 18. Qf3 {[%emt 0:0:21]} Bg7 {[%emt 0:1:25]} 19. Bxg7 {[%emt 0:0:36]} Kxg7 {[%emt 0:0:2]
} 20. Ne4 {[%emt 0:0:5]} Nb6 {[%emt 0:0:13]} 21. Bb3 {[%emt 0:0:0]} a5 {[%emt 0:0:3]} 22. a3 {[%emt 0:0:26]} N4d5 {[%emt 0:1:32]} 23. Rc1 {[%emt 0:0:21]} Rc8 {[%emt 0:0:25]} 24. Rfd1 {[%emt 0:0:51]} Rc7 {[%emt 0:0:52]
} 25. Rc2 {[%emt 0:0:53]} Qe7 {[%emt 0:0:45]} 26. Rdc1 {[%emt 0:0:22]
} Rec8 {[%emt 0:0:56]} 27. Qg3 {[%emt 0:0:38]} Nf6 {[%emt 0:0:0]} 28. Nd6 {[%emt 0:2:9]} Rd8 {[%emt 0:0:24]} 29. Rxc6 {[%emt 0:0:17]} Rcd7 {[%emt 0:0:55]} 30. Nxf7 {[%emt 0:0:30]} Qxf7 {[%emt 0:0:20]} 31. Rxb6 {[%emt 0:0:33]} Rxd4 {[%emt 0:0:4]} 32. h3 {[%emt 0:0:46]} Nh5 {[%emt 0:0:0]} 33. Qe5+ {[%emt 0:0:13]} Kh6 {[%emt 0:0:4]} 34. Rxe6 {[%emt 0:0:54]} Qf4 {[%emt 0:0:8]} 35. Qxf4+ {[%emt 0:0:17]} Nxf4 {[%emt 0:0:1]} 36. Re7 {[%emt 0:0:51]
} Rb8 {[%emt 0:0:20]} 37. Rc3 {[%emt 0:0:30]} a4 {[%emt 0:0:0]} 38. Rc4 {[%emt 0:0:23]} Rxc4 {[%emt 0:0:51]} 39. Bxc4 {[%emt 0:0:2]} Rxb2 {[%emt 0:0:5]} 40. Bg8 {[%emt 0:0:2]} Kg5 {[%emt 0:0:21]} 41. Rxh7 {[%emt 0:0:17]
} Ne2+ {[%emt 0:1:39]} 42. Kh2 {[%emt 0:0:5]} Nd4 {[%emt 0:0:0]} 43. Rf7 {[%emt 0:0:16]} Nf5 {[%emt 0:0:14]} 44. Ra7 {[%emt 0:0:37]} Rxf2 {[%emt 0:0:7]} 45. Rxa4 {[%emt 0:0:3]} Ne3 {[%emt 0:0:4]} 46. Kg3 {[%emt 0:0:16]
} Rc2 {[%emt 0:0:26]} 47. Kf3 {[%emt 0:0:12]} Nf5 {[%emt 0:0:0]} 48. Rg4+ {[%emt 0:0:31]} Kh5 {[%emt 0:0:37]} 49. a4 {[%emt 0:0:21]} Nh4+ {[%emt 0:1:27]} 50. Ke4 {[%emt 0:0:8]} Nxg2 {[%emt 0:0:7]} 51. a5 {[%emt 0:0:8]
} Nh4 {[%emt 0:0:11]} 52. Kd3 {[%emt 0:0:20]} Rh2 {[%emt 0:0:0]} 53. Ra4 {[%emt 0:0:4]} Rxh3+ {[%emt 0:0:1]} 54. Ke2 {[%emt 0:0:4]} Rh2+ {[%emt 0:0:8]} 55. Kf1 {[%emt 0:0:9]} Nf3 {[%emt 0:0:11]} 56. Bd5 {[%emt 0:0:15]
} Ne5 {[%emt 0:0:19]} 57. a6 {[%emt 0:0:5]} Rd2 {[%emt 0:0:0]} 58. a7 {[%emt 0:0:11]} 1-0

[Event "FIDE World Rapid-ch Open 2018"]
[White "Yilmaz, Mustafa"]
[Black "AL-Sayed, Mohammed"]
[Site "St. Petersburg"]
[Round "4.77"]
[Annotator "ChessBase"]
[Result "0-1"]
[Date "2018.12.26"]
[WhiteElo "2636"]
[BlackElo "2484"]
[PlyCount "88"]
[TimeControl "900+10"]

1. d4 {[%emt 0:0:0]} d5 {[%emt 0:0:0]} 2. c4 {[%emt 0:0:0]} c6 {[%emt 0:0:0]} 3. Nf3 {[%emt 0:0:0]} Nf6 {[%emt 0:0:0]} 4. e3 {[%emt 0:0:8]} Bf5 {[%emt 0:0:2]} 5. Nc3 {[%emt 0:0:3]} e6 {[%emt 0:0:2]} 6. Nh4 {[%emt 0:0:0]} Bg6 {[%emt 0:0:6]} 7. Be2 {[%emt 0:1:39]} Nbd7 {[%emt 0:0:44]} 8. g3 {[%emt 0:1:19]} Be7 {[%emt 0:2:23]} 9. 0-0 {[%emt 0:0:37]} dxc4 {[%emt 0:0:0]} 10. Nxg6 {[%emt 0:0:25]} hxg6 {[%emt 0:0:3]} 11. Bxc4 {[%emt 0:0:0]} Qa5 {[%emt 0:0:2]} 12. e4 {[%emt 0:1:31]} Rd8 {[%emt 0:0:2]} 13. Be2 {[%emt 0:2:40]} b5 {[%emt 0:1:54]} 14. e5 {[%emt 0:2:8]} Nxe5 {[%emt 0:0:0]} 15. Bf4 {[%emt 0:0:39]} Ned7 {[%emt 0:2:9]} 16. Rc1 {[%emt 0:0:19]} 0-0 {[%emt 0:1:44]} 17. Bf3 {[%emt 0:1:14]} Rc8 {[%emt 0:2:8]} 18. Re1 {[%emt 0:0:34]
} Rfd8 {[%emt 0:0:4]} 19. a3 {[%emt 0:0:7]} Nb6 {[%emt 0:0:0]} 20. Qb3 {[%emt 0:0:57]} Rxd4 {[%emt 0:1:46]} 21. Ne2 {[%emt 0:0:37]} Rdd8 {[%emt 0:0:19]} 22. Bg5 {[%emt 0:0:36]} Nc4 {[%emt 0:0:9]} 23. Kg2 {[%emt 0:0:24]
} Nd5 {[%emt 0:0:24]} 24. Bxe7 {[%emt 0:0:27]} Nxe7 {[%emt 0:0:0]} 25. Nf4 {[%emt 0:0:5]} Nf5 {[%emt 0:0:37]} 26. Bg4 {[%emt 0:0:34]} Rd2 {[%emt 0:0:20]} 27. Qf3 {[%emt 0:0:53]} Rxb2 {[%emt 0:0:47]} 28. a4 {[%emt 0:0:39]
} Qxa4 {[%emt 0:1:20]} 29. Bxf5 {[%emt 0:0:40]} gxf5 {[%emt 0:0:0]} 30. Nh5 {[%emt 0:0:3]} Qb4 {[%emt 0:0:42]} 31. Rcd1 {[%emt 0:0:19]} Nd2 {[%emt 0:0:10]} 32. Qd3 {[%emt 0:0:6]} Ne4 {[%emt 0:0:9]} 33. Re2 {[%emt 0:0:2]
} Rxe2 {[%emt 0:0:8]} 34. Qxe2 {[%emt 0:0:1]} g6 {[%emt 0:0:0]} 35. Nf4 {[%emt 0:0:6]} Nc3 {[%emt 0:0:3]} 36. Qd2 {[%emt 0:0:3]} Qe4+ {[%emt 0:0:7]} 37. f3 {[%emt 0:0:1]} Qc4 {[%emt 0:0:3]} 38. Rc1 {[%emt 0:0:32]
} b4 {[%emt 0:0:0]} 39. Qd7 {[%emt 0:0:1]} Rf8 {[%emt 0:0:0]} 40. h4 {[%emt 0:0:1]} e5 {[%emt 0:0:9]} 41. Nd3 {[%emt 0:0:19]} e4 {[%emt 0:0:1]
} 42. fxe4 {[%emt 0:0:6]} Qxe4+ {[%emt 0:0:1]} 43. Kh3 {[%emt 0:0:3]
} Qg4+ {[%emt 0:0:14]} 44. Kh2 {[%emt 0:0:9]} Ne2 {[%emt 0:0:0]} 0-1

[Event "FIDE World Rapid-ch Open 2018"]
[White "Zablotsky, Sergei"]
[Black "Tissir, Mohamed"]
[Site "St. Petersburg"]
[Round "4.78"]
[Annotator "ChessBase"]
[Result "0-1"]
[Date "2018.12.26"]
[WhiteElo "2511"]
[BlackElo "2387"]
[PlyCount "67"]
[TimeControl "900+10"]

1. d4 {[%emt 0:0:0]} e6 {[%emt 0:0:0]} 2. c4 {[%emt 0:0:6]} c5 {[%emt 0:0:0]} 3. d5 {[%emt 0:0:3]} exd5 {[%emt 0:0:0]} 4. cxd5 {[%emt 0:0:2]} d6 {[%emt 0:0:0]} 5. e4 {[%emt 0:0:14]} Ne7 {[%emt 0:0:0]} 6. Nc3 {[%emt 0:0:8]
} Ng6 {[%emt 0:0:0]} 7. f4 {[%emt 0:1:0]} Be7 {[%emt 0:0:3]
} 8. Nf3 {[%emt 0:0:2]} 0-0 {[%emt 0:0:14]} 9. g3 {[%emt 0:0:31]} Bf6 {[%emt 0:0:11]
} 10. Bg2 {[%emt 0:0:10]} Re8 {[%emt 0:0:2]} 11. 0-0 {[%emt 0:0:0]} a6 {[%emt 0:0:23]} 12. a4 {[%emt 0:0:8]} Nd7 {[%emt 0:0:46]} 13. h4 {[%emt 0:1:19]} h6 {[%emt 0:2:30]} 14. h5 {[%emt 0:0:12]} Ngf8 {[%emt 0:0:0]} 15. Re1 {[%emt 0:1:40]} Bxc3 {[%emt 0:1:49]} 16. bxc3 {[%emt 0:0:3]} Nf6 {[%emt 0:0:1]} 17. Nh2 {[%emt 0:0:34]} Qa5 {[%emt 0:2:36]} 18. Bd2 {[%emt 0:1:33]
} c4 {[%emt 0:0:1]} 19. Qf3 {[%emt 0:1:30]} N8d7 {[%emt 0:0:0]} 20. g4 {[%emt 0:0:12]} Nh7 {[%emt 0:0:16]} 21. Qf1 {[%emt 0:1:8]} Qc7 {[%emt 0:3:17]} 22. a5 {[%emt 0:2:12]} Nc5 {[%emt 0:0:58]} 23. Qxc4 {[%emt 0:0:31]
} Bd7 {[%emt 0:0:1]} 24. e5 {[%emt 0:1:46]} Bb5 {[%emt 0:0:0]} 25. exd6 {[%emt 0:1:6]} Qxd6 {[%emt 0:0:5]} 26. Qb4 {[%emt 0:0:11]} Qc7 {[%emt 0:0:19]} 27. Rxe8+ {[%emt 0:1:52]} Rxe8 {[%emt 0:0:2]} 28. Bf3 {[%emt 0:0:12]
} Nf6 {[%emt 0:1:0]} 29. Rd1 {[%emt 0:0:48]} Be2 {[%emt 0:0:0]} 30. Bxe2 {[%emt 0:0:14]} Rxe2 {[%emt 0:0:1]} 31. Qb6 {[%emt 0:0:27]} Qxb6 {[%emt 0:1:45]} 32. axb6 {[%emt 0:0:1]} Nxd5 {[%emt 0:0:2]} 33. Nf3 {[%emt 0:0:12]
} Ne4 {[%emt 0:0:3]} 34. Be1 {[%emt 0:0:30]} 0-1

[Event "FIDE World Rapid-ch Open 2018"]
[White "Golubov, Saveliy"]
[Black "Bilguun, Sumiya"]
[Site "St. Petersburg"]
[Round "4.79"]
[Annotator "ChessBase"]
[Result "1/2-1/2"]
[Date "2018.12.26"]
[WhiteElo "2482"]
[BlackElo "2497"]
[PlyCount "90"]
[TimeControl "900+10"]

1. d4 d5 2. Bf4 Nf6 3. e3 e6 4. Nd2 a6 5. Bd3 c5 6. c3 Nc6 7. Ngf3 Bd6 8. Bg3 0-0 9. Qe2 Re8 10. Ne5 Qc7 11. f4 Ne7 12. Bf2 b5 13. Qf3 Bb7 14. g4 b4 15. g5 Ne4 16. Nxe4 dxe4 17. Bxe4 Bxe4 18. Qxe4 bxc3 19. bxc3 cxd4 20. cxd4 Bxe5 21. Qxe5 Qc3+ 22. Ke2 Rab8 23. Kf3 Rb2 24. Rhf1 Qd2 25. Kg2 Nf5 26. Kh1 Qe2 27. Qe4 Rxa2 28. Rxa2 Qxa2 29. Kg1 h6 30. Qc6 Rf8 31. e4 Ne7 32. Qc7 Qa3 33. d5 Rc8 34. Qd7 exd5 35. exd5 Rc1 36. gxh6 Rxf1+ 37. Kxf1 Qd3+ 38. Ke1 Qe4+ 39. Kf1 Nxd5 40. Qd8+ Kh7 41. hxg7 Qd3+ 42. Ke1 Qc3+ 43. Kf1 Qd3+ 44. Ke1 Qc3+ 45. Kf1 Qd3+ 1/2-1/2